Cogmind - Beta 12 @@@ ROGUE MODE // 2023.10.22 @ 11:27:37 Player: Pitt Result: Destroyed by D-53 Grenadier with Mini Grenade Launcher Performance ------------- Evolutions (1) 500 Regions Visited (3) 600 Robots Destroyed (47) 235 Value Destroyed (933) 933 Prototype IDs (0) 0 Alien Tech Used (0) 0 Bonus (0) 0 TOTAL SCORE: 2268 Bonus ------- None Cogmind --------- Core Integrity 0/400 Matter 161/300 Energy 98/100 System Corruption 8% Temperature Cool (0) Movement Rolling (80) Location -9/Mines Parts ------- > --- POWER (1) -------- (None) > --- PROPULSION (2) --- Wheel Wheel > --- UTILITY (4) ------ Medium Storage Unit Visual Processing Unit Improved Terrain Scanner Terrain Scan Processor > --- WEAPON (2) ------- Field Laser (fused) > --- INVENTORY (10) --- Hover Unit Hover Unit Structural Scanner Machine Analyzer Sensor Array Seismic Detector Light Armor Plating System Shield Mini Grenade Launcher Mining Laser Peak State ------------ > --- POWER ------------ Light Ion Engine > --- PROPULSION ------- Light Treads Light Treads > --- UTILITY ---------- Improved Heat Sink Medium Storage Unit Visual Processing Unit Terrain Scan Processor > --- WEAPON ----------- Field Laser Heavy Assault Rifle > --- INVENTORY -------- Wheel Hover Unit Hover Unit Machine Analyzer Sensor Array Terrain Scanner Seismic Detector System Shield Mini Grenade Launcher Datajack [Rating: 17] Favorites ----------- Power Light Ion Engine Engine Light Ion Engine Propulsion Compact Wheel Treads Light Treads Wheel Compact Wheel Utility Improved Terrain Scanner Device Improved Terrain Scanner Storage Medium Storage Unit Processor Terrain Scan Processor Weapon Medium Laser Energy Gun Medium Laser Ballistic Gun Heavy Assault Rifle Launcher Mini Grenade Launcher Special Weapon Mining Laser Special Melee Weapon Datajack Build | -11 -10 -9 -9 ------- Run | Jun Mat Mat Min Slots Evolved 2 | . . 2 . Power . | . . . . Propulsion . | . . . . Utility 2 | . . 2 . Weapon . | . . . . Parts Attached 70 | 7 18 38 7 Power 5 | 1 1 2 1 Engine 5 | 1 1 2 1 Core . | . . . . Reactor . | . . . . Propulsion 12 | 2 3 6 1 Treads 2 | . . 2 . Leg . | . . . . Wheel 10 | 2 3 4 1 Hover . | . . . . Flight . | . . . . Utility 25 | 2 10 8 5 Device 19 | 1 9 4 5 Storage 4 | 1 1 2 . Processor 2 | . . 2 . Hackware . | . . . . Protection . | . . . . Artifact . | . . . . Weapon 28 | 2 4 22 . Energy Gun 8 | 1 3 4 . Energy Cannon . | . . . . Ballistic Gun 8 | 1 . 7 . Ballistic Cannon . | . . . . Launcher 2 | . . 2 . Special Weapon 4 | . 1 3 . Impact Weapon . | . . . . Slashing Weapon . | . . . . Piercing Weapon . | . . . . Special Melee Weapon 6 | . . 6 . Unidentified Prototypes . | . . . . Parts Lost 10 | . 1 8 1 Power 3 | . 1 2 . Propulsion 1 | . . 1 . Utility 1 | . . 1 . Weapon 5 | . . 4 1 Highest Loss Streak 5 | . 1 5 1 To Critical Strikes . | . . . . Average Slot Usage (%) 94 | . 99 89 93 Engine 11 | . 13 9 11 Treads 2 | . . 6 . Wheel 22 | . 28 15 22 Device 13 | . 14 15 11 Storage 12 | . 14 11 11 Processor 8 | . . 10 22 Energy Gun 18 | . 27 12 11 Ballistic Gun 1 | . . 3 . Special Melee Weapon 3 | . . 5 5 Naked Turns . | . . . . Heaviest Build 20 | 11 19 20 19 Greatest Support 40 | 32 32 40 20 Greatest Overweight (x) 4 | . . 4 . Average Overweight (x) . | . . . . Largest Inventory Capacity 10 | 8 10 10 10 Average Capacity 9 | 7 8 10 10 Most Carried 10 | 6 10 10 10 Average Carried 8 | 3 7 8 9 Final Capacity 10 | 8 10 10 10 Final Carried 10 | 6 10 10 10 Class Distribution -------------------- 46% | Scavenger-Mutant 43% | Mutant 10% | Scavenger-Assassin Dominant Class ---------------- Mutant | -10/Materials Scavenger-Mutant | -9/Materials Scavenger-Mutant | -9/Mines Resources | -11 -10 -9 -9 ----------- Run | Jun Mat Mat Min Matter Collected 1171 | 286 166 507 212 Remotely . | . . . . Salvage Created 1378 | 137 310 703 228 Parts 115 | 20 20 60 15 Haulers Intercepted . | . . . . Recyclers Shooed 3 | . 1 1 1 Parts Field Recycled . | . . . . Retrieved Matter . | . . . . Parts Self-Destructed . | . . . . Prevented . | . . . . Kills | -11 -10 -9 -9 ------- Run | Jun Mat Mat Min Combat Hostiles Destroyed 22 | . 7 13 2 Guns 18 | . 7 9 2 AOE 4 | . . 4 . Classes Destroyed 10 | 1 4 4 1 Worker 1 | . . 1 . Builder 9 | . 1 8 . Tunneler 10 | 7 . 1 2 Recycler 3 | . 1 1 1 Mechanic 1 | . . 1 . Watcher 1 | . . 1 . Swarmer 3 | . 3 . . Grunt 15 | . 4 10 1 Brawler 1 | . . . 1 Sentry 3 | . . 3 . Best Kill Streak 5 | 2 3 5 3 Combat Bots Only 3 | . 3 3 2 Max Kills in Single Turn 2 | 1 1 2 1 Gunslinging . | . . . . Exploded 1 | . . 1 . Melee . | . . . . Uniques/NPCs Destroyed . | . . . . Combat | -11 -10 -9 -9 -------- Run | Jun Mat Mat Min Damage Taken 1638 | . 241 1289 108 Core 467 | . 65 376 26 Absorbed by Shields . | . . . . Core Remaining (%) 87 | 100 74 . . Volleys Fired 166 | 17 28 97 24 Largest 2 | 2 2 2 1 Hottest 100 | 60 100 100 63 Shots Fired 235 | 33 54 124 24 Gun 218 | 33 52 109 24 Cannon . | . . . . Launcher 9 | . . 9 . Special 8 | . 2 6 . Kinetic 89 | 17 . 72 . Thermal 137 | 16 54 43 24 Explosive 9 | . . 9 . Electromagnetic . | . . . . Robot Hit Streak 15 | 6 4 15 5 Robot Miss Streak 4 | 2 3 4 3 Penetration Max . | . . . . Secondary Targets 1 | . 1 . . Max Gunslinging Chain 1 | . 1 . . Shots Hit Robots 151 | 18 28 91 14 Core Hits 72 | 12 16 38 6 Critical Kills . | . . . . Critical Parts Destroyed . | . . . . Critical Strikes 8 | . 4 1 3 Burn 8 | . 4 1 3 Melee Attacks 9 | . . 9 . Impact . | . . . . Slashing . | . . . . Piercing . | . . . . Sneak Attacks 9 | . . 9 . Combat Hostiles . | . . . . Follow-up Attacks . | . . . . Damage Inflicted 2307 | 181 338 1529 259 Guns 1769 | 181 338 991 259 Cannons . | . . . . Explosions 538 | . . 538 . Melee . | . . . . Ramming . | . . . . Kinetic 713 | 76 . 637 . Thermal 1056 | 105 338 354 259 Explosive 538 | . . 538 . Electromagnetic . | . . . . Impact . | . . . . Slashing . | . . . . Piercing . | . . . . Highest Corruption 8 | . . 8 8 Average Corruption 8 | . . 8 8 Corruption Purged . | . . . . Corruption Blocked . | . . . . Effects 102 | . . 44 58 Message Errors 23 | . . 8 15 Matter Fused 25 | . . 8 17 Heat Flow Errors 6 | . . 3 3 Energy Discharges 10 | . . 5 5 Parts Rejected 2 | . . 1 1 Parts Fused 3 | . . 1 2 Data Loss (minor) 15 | . . 9 6 Data Loss (major) 6 | . . 3 3 Misfires 4 | . . 2 2 Alerts 4 | . . 2 2 Weapon Failures 4 | . . 2 2 Overload Shots . | . . . . Overflow Damage . | . . . . Projectiles . | . . . . Explosions . | . . . . Melee . | . . . . Knockbacks . | . . . . Impact . | . . . . Kinetic . | . . . . Secondary . | . . . . Self-Inflicted Damage . | . . . . Shots . | . . . . Rammed . | . . . . Targets Rammed . | . . . . Kicked . | . . . . Crushed . | . . . . Highest Temperature 318 | 40 318 140 217 Average Temperature 62 | 20 102 25 73 Received Heat Transfer 618 | . 135 453 30 Effects 2 | . 2 . . Energy Bleed 1 | . 1 . . Interference 1 | . 1 . . Siege Activations . | . . . . Robots Corrupted . | . . . . Combat Hostiles . | . . . . Parts Fried . | . . . . Impact Corruptions . | . . . . Robots Melted . | . . . . Combat Hostiles . | . . . . Parts Melted 5 | . 3 1 1 Heat Transferred 3095 | 250 1200 868 777 Parts Sabotaged . | . . . . Parts Stolen . | . . . . Parts Stripped . | . . . . Power Chain Reactions . | . . . . Missiles Intercepted . | . . . . Alert | -11 -10 -9 -9 ------- Run | Jun Mat Mat Min Peak Influence 358 | 35 179 358 114 Initial 114 | . 22 75 114 Average 53 | 13 23 105 36 Maximum Alert Level 1 | . . 1 . Low Security (%) 91 | 100 100 75 100 Level 1 8 | . . 24 . Level 2 . | . . . . Level 3 . | . . . . Level 4 . | . . . . Level 5 . | . . . . High Security . | . . . . Max Security . | . . . . Squads Dispatched 3 | . 1 2 . Investigation 1 | . 1 . . Extermination . | . . . . Reinforcement 2 | . . 2 . Assault . | . . . . Garrison . | . . . . Intercept . | . . . . Searches Triggered . | . . . . Construction Impeded 1 | . . 1 . Haulers Reinforced . | . . . . Active Scanning Responses . | . . . . Cargo Convoy Interrupts . | . . . . Stealth | -11 -10 -9 -9 --------- Run | Jun Mat Mat Min Distress Signals 2 | . 1 1 . Communications Jammed . | . . . . Distress Signals . | . . . . Times Spotted 49 | . 10 21 18 Peak Tracking Total 22 | . 5 5 22 Tactical Retreats . | . . . . Traps | -11 -10 -9 -9 ------- Run | Jun Mat Mat Min Traps Triggered 1 | . 1 . . Indirectly . | . . . . Trap Hack Attempts . | . . . . Triggered . | . . . . Disarmed . | . . . . Reprogrammed . | . . . . Reused . | . . . . Traps Extracted . | . . . . Installed . | . . . . Triggered . | . . . . Machines | -11 -10 -9 -9 ---------- Run | Jun Mat Mat Min Machines Disabled 2 | . . 2 . Max in Single Turn 1 | . . 1 . Machines Repaired . | . . . . Machines Sabotaged . | . . . . Overloaded Fab Kills . | . . . . Hacking | -11 -10 -9 -9 --------- Run | Jun Mat Mat Min Machines Accessed 6 | . 5 1 . Terminals 6 | . 5 1 . Fabricators . | . . . . Repair Stations . | . . . . Recycling Units . | . . . . Scanalyzers . | . . . . Garrison Access . | . . . . Total Hacks 16 | . 15 1 . Successful 8 | . 8 . . Failed 8 | . 7 1 . Catastrophic 2 | . 1 1 . Database Lockouts . | . . . . Manual 12 | . 12 . . Terminals 16 | . 15 1 . Fabricators . | . . . . Repair Stations . | . . . . Recycling Units . | . . . . Scanalyzers . | . . . . Garrison Access . | . . . . Terminal Hacks 4 | . 4 . . Terminal Index 1 | . 1 . . Locate Traps 1 | . 1 . . Recall Investigation 1 | . 1 . . Zone Layout 1 | . 1 . . Fabricator Hacks . | . . . . Repair Station Hacks . | . . . . Recycling Unit Hacks . | . . . . Scanalyzer . | . . . . Garrison Access Hacks . | . . . . Unauthorized Hacks 4 | . 4 . . Terminals 4 | . 4 . . Botnet 3 | . 3 . . Operators 1 | . 1 . . Fabricators . | . . . . Repair Stations . | . . . . Recycling Units . | . . . . Scanalyzers . | . . . . Garrison Access . | . . . . Data Cores Recovered . | . . . . Used . | . . . . Hacking Detections 6 | . 5 1 . Full Trace Events . | . . . . Feedback Events . | . . . . Feedback Blocked . | . . . . Robot Schematics Acquired . | . . . . Robots Built . | . . . . Authchips . | . . . . Time . | . . . . Total Robot Build Rating . | . . . . Part Schematics Acquired . | . . . . Parts Built . | . . . . Authchips . | . . . . Time . | . . . . Total Part Build Rating . | . . . . Parts Repaired . | . . . . Time . | . . . . Parts Recycled . | . . . . Recycled Matter . | . . . . Retrieved Matter . | . . . . Retrieved Components . | . . . . Parts Scanalyzed . | . . . . Part Schematics Acquired . | . . . . Parts Damaged . | . . . . Bothacking | -11 -10 -9 -9 ------------ Run | Jun Mat Mat Min Used RIF Installer . | . . . . Robots Hacked 8 | . . 8 . Non-combat 8 | . . 8 . Combat . | . . . . Robot Hacks Applied 9 | . . 9 . no_distress 8 | . . 8 . find_recycling 1 | . . 1 . Relay Couplers Released . | . . . . Fabnet Peak Effective % . | . . . . Robots Rewired . | . . . . Allies Hacked . | . . . . Hacks Repelled . | . . . . Allies | -11 -10 -9 -9 -------- Run | Jun Mat Mat Min Total Allies . | . . . . Largest Group . | . . . . Highest-Rated Group . | . . . . Highest-Rated Ally . | . . . . Total Orders . | . . . . Ally Attacks . | . . . . Total Damage . | . . . . Kills . | . . . . Allies Corrupted . | . . . . Allies Melted . | . . . . Intel | -11 -10 -9 -9 ------- Run | Jun Mat Mat Min Robot Analysis Total . | . . . . Derelict Logs Recovered . | . . . . Drone Launches . | . . . . Drone Recoveries . | . . . . Exploration | -11 -10 -9 -9 ------------- Run | Jun Mat Mat Min Turns Passed 7482 | 222 3021 2490 1749 Spaces Moved 1394 | 157 389 645 203 Core 12 | 7 . 5 . Treads 329 | . . 329 . Legs . | . . . . Wheels 1053 | 150 389 311 203 Hover . | . . . . Flight . | . . . . Fastest Speed 50 | 50 80 80 80 Average Speed 106 | 97 89 127 80 Slowest Speed 250 | 100 100 250 80 Overloaded Moves . | . . . . Propulsion Burnouts . | . . . . Robots Hopped . | . . . . Cave-ins Triggered 1 | . . 1 . Exploration Rate (%) 30 | 5 50 27 39 Regions Visited 3 Branch Regions 1 Pre-discovered Areas . | . . . . Known Exits Taken . | . . . . Unknown Exits Taken 3 | 1 1 1 . Scrap Searched . | . . . . Spaces Dug 7 | . 1 6 . Terrain Destroyed 61 | . 1 60 . Melee . | . . . . Projectile 7 | . 1 6 . AOE 54 | . . 54 . Terrain Rammed . | . . . . Walls Destroyed . | . . . . Machines Disabled . | . . . . Actions | -11 -10 -9 -9 --------- Run | Jun Mat Mat Min Total 7127 | 192 2999 2170 1766 Wait 5438 | 4 2551 1358 1525 Move 1390 | 156 388 643 203 Hop . | . . . . Pick Up 27 | 7 7 11 2 Fast Attach 21 | 7 2 11 1 Attach 7 | . . 7 . Detach 4 | . 1 2 1 Swap 42 | . 16 20 6 Drop 22 | 1 6 11 4 Fire 166 | 17 28 97 24 Melee 9 | . . 9 . Ram . | . . . . Kick . | . . . . Crush . | . . . . Escape Stasis 1 | . . 1 . Rewire . | . . . . Trap . | . . . . Miscellaneous . | . . . . Route ------- -11/Junkyard -10/Materials (discovered 2 exits: *Mat x2) -9/Materials (discovered 3 exits: [*Mat] / [*Min x2]) -9/Mines History --------- Turn | Location | Event 15 | -11/Junkyard | Discovered new exit (range 16) 223 | -11/Junkyard | Entered Materials 318 | -10/Materials | Build established: Mutant 2990 | -10/Materials | Discovered new exit (range 5) 3171 | -10/Materials | Discovered new exit (range 16) 3244 | -10/Materials | Entered another Materials area 3244 | -9/Materials | Evolved 2 slots: Utility x2 3550 | -9/Materials | Build established: Scavenger-Mutant 4658 | -9/Materials | Crushed by falling debris 4689 | -9/Materials | Lost 3 parts (1u2w) 4820 | -9/Materials | Core integrity fell below 50% 4856 | -9/Materials | Lost 5 parts (2p1n2w) 4880 | -9/Materials | Discovered new exit (range 11) 4937 | -9/Materials | Discovered new exit (range 13) 5120 | -9/Materials | Core integrity fell below 20% 5271 | -9/Materials | Discovered new exit (range 14) 5734 | -9/Materials | Entered Mines 6021 | -9/Mines | Build established: Scavenger-Assassin 6855 | -9/Mines | Build established: Scavenger-Mutant 7471 | -9/Mines | Assembled infested the area 7483 | -9/Mines | Destroyed by D-53 Grenadier with Mini Grenade Launcher Last Messages --------------- 07132_ System corrupted: Field Laser misfires. 07158_ System corrupted: Matter fused (-7). 07177_ System corrupted: Energy discharge (-85). 07229_ System corrupted: Component data lost. 07245_ System corrupted: Matter fused (-7). 07270_ System corrupted: Heat flow error (+233). 07314_ JQHX %GMHDQ>SRJN E|UA >LBHD9WL9SRLN 07350_ System corrupted: Heat flow error (+240). 07366_ System corrupted: Component data lost. 07383_ System corrupted: Matter fused (-8). 07408_ System corrupted: Imp. Terrain Scanner fused. 07424_ System corrupted: Heat flow error (+231). 07437_ K-01 Serf suffers critical hit (Burn). 07448_ Discarded Imp. Terrain Scanner. 07449_ Acquired Imp. Terrain Scanner. 07451_ System corrupted: Component data lost. 07471_ ALERT: Infestation in the mines, dispatching Demolisher response squad. 07483_ System corrupted: Ion Engine rejected. 07483_ C-30 ARC bursts open, deploying its payload. 07483_ D-53 Grenadier unfolds itself. Map ----- +----------------------------------------------------+ | ??????????????????????????????????????????? | | ??????????????????????????????????????????? | | ??????????????????????????????????????????? | | ??????????????????????????????????????????? | | ??????????????????????????????????????????? | | ??????????????????????????????????????????? | | ??????????????????????????????????????????? | | ??? ?????????????????????????????????????? | | ???" ?????????????????????????????????????? | | ??? ?????????????????????????????????????? | | ???# ?????????????????????????????????????? | | ???# ????#????????????????????????????????? | | ???# ?#???????##???????#??# ????????????? | | ???# ??????#?????????? #? ?????????????? | | #??# ???##??#??????#?? # ??????????????? | | ??## ###?#??????????? # #??????????????? | | ??## ?????#??????###? #??????????????? | | #?# ?##?#??????## ## #??????????????? | | ?## ????##??#??# ######?????????? | | ??# ##???#??#??# ##### ???????? | | ### ##???#????# ##?#? ?????? | | ???# ##????#?## ###### ##????? | | ????# #???#???#d%d ######## ###???? | | ?????# #?????### ######## ####??? | | #??#?# ##??##### ####### #### ?? | | ?????# ##?##### @ ##### ??### ?? | | ?????# ##??####* #### ?###?"? | | ?#???# #### ### r #?## ? | | ?#???# a ####### ##### ##?## ? | | ?#???# ################## ######## | | #???## ##?################ ######?# | | ???## ################### ######## | | ????# ################## ######?# | | ??#?## ######! %! ######## | | ???#?## ### ## ##### ######## #### | | ????#?########### ####### ### | | #??#??##??####### ##### ###### ## | | ???#?#?#?####### ###### ###### """ ## | | ?????#?######## ###### ####### """ ## | | #??##?######### ###### ###### """ ### | | ?????########## #### ###### ##? | | ?#?############ #### ###### ##? | | ???########### ##### ##? | | #??######## ###### ## | | ??######## ####### #######= ## | | ??######## #################=[ ## | | ?########## ##################*! ## | | ?############ ################## # | | ?############# ########## ###### # | | ?############# ######## #### ## | +----------------------------------------------------+ Best States ------------- Heat Dissipation 42 Energy Generation 10 Energy Capacity 250 Matter Stores 300 Matter Capacity 300 Sight Range 18 Robot Scan Range 14 Terrain Scan Range 16 Terrain Scan Density 85 Evasion (%) 44 Recoil Reduction 2 Item Schematics ----------------- None Robot Schematics ------------------ None Fabricated ------------ Nothing Alien Tech Used ----------------- None Achievements -------------- None Challenges ------------ None Game ------ Seed SkeletonThermalBiocell Manual? 0 Play Time 00:38:01 Cumulative 171.9 hours Start 2023.10.22 @ 09:51:23 End 2023.10.22 @ 11:27:37 Sessions 1 Manual Loads 0 Difficulty Rogue Special Mode None Game No. 260 Rogue 260 Adventurer 0 Explorer 0 Win Type - Total 0 Types 0/0/0/0/0/0/0/0/0 Lore% 51 Gallery% 59 Achievement% 40 Wizard Run 0 Options --------- ASCII 0 Keyboard 0 Movement Mouse Keybinds 0 Fullscreen 1 Font 12/Smallcaps Map View 83x54 Tactical HUD 1 Map Filters NONE Filters NONE Steam 1 RUN: e92ee72c-accc-4547-83fc-1f700cf4e3dc